[Event "Titled Tuesday Blitz November 29 Late 2022"]
[White "Coelho, Ramyres Santana"]
[Black "Bas Mas, Jose Joaquin"]
[WhiteFideId "2120690"]
[BlackFideId "22219064"]
[WhiteElo "1888"]
[BlackElo "2233"]
[Result "0-1"]
[Round "07"]
[TimeControl "180+1"]
[Date "2022.11.30"]
[WhiteClock "0:00:02"]
[BlackClock "0:00:35"]

1. e4 {[%clk 0:03:00]}  c5 {[%clk 0:02:54]} 2. Nf3 {[%clk 0:02:54]}  Nc6 {[%clk 0:02:54]} 3. d4 {[%clk 0:02:49]}  cxd4 {[%clk 0:02:55]} 4. c3 {[%clk 0:02:49]}  dxc3 {[%clk 0:02:53]} 5. Nxc3 {[%clk 0:02:50]}  d6 {[%clk 0:02:53]} 6. Bc4 {[%clk 0:02:49]}  a6 {[%clk 0:02:53]} 7. O-O {[%clk 0:02:48]}  Nf6 {[%clk 0:02:53]} 8. h3 {[%clk 0:02:46]}  e6 {[%clk 0:02:49]} 9. Qe2 {[%clk 0:02:47]}  Be7 {[%clk 0:02:41]} 10. Rd1 {[%clk 0:02:47]}  Qc7 {[%clk 0:02:40]} 11. Bf4 {[%clk 0:02:41]}  Ne5 {[%clk 0:02:39]} 12. Nxe5 {[%clk 0:02:37]}  dxe5 {[%clk 0:02:38]} 13. Bg3 {[%clk 0:02:32]}  Bd7 {[%clk 0:02:26]} 14. Rac1 {[%clk 0:02:30]}  Bc6 {[%clk 0:02:25]} 15. f3 {[%clk 0:02:26]}  O-O {[%clk 0:02:21]} 16. Bb3 {[%clk 0:02:19]}  Rfd8 {[%clk 0:02:08]} 17. Rxd8+ {[%clk 0:02:17]}  Rxd8 {[%clk 0:02:06]} 18. Rd1 {[%clk 0:02:18]}  Nh5 {[%clk 0:02:01]} 19. Rxd8+ {[%clk 0:02:10]}  Bxd8 {[%clk 0:02:02]} 20. Bh2 {[%clk 0:02:05]}  Qd6 {[%clk 0:01:55]} 21. Qd1 {[%clk 0:01:55]}  Bb6+ {[%clk 0:01:54]} 22. Kh1 {[%clk 0:01:54]}  Qxd1+ {[%clk 0:01:48]} 23. Nxd1 {[%clk 0:01:49]}  Bd4 {[%clk 0:01:49]} 24. g4 {[%clk 0:01:34]}  Nf4 {[%clk 0:01:48]} 25. Bxf4 {[%clk 0:01:33]}  exf4 {[%clk 0:01:49]} 26. Kg2 {[%clk 0:01:29]}  Bb5 {[%clk 0:01:46]} 27. a4 {[%clk 0:01:20]}  Bd3 {[%clk 0:01:45]} 28. Nc3 {[%clk 0:01:21]}  Kf8 {[%clk 0:01:39]} 29. Bd1 {[%clk 0:01:14]}  g5 {[%clk 0:01:35]} 30. h4 {[%clk 0:01:08]}  h6 {[%clk 0:01:27]} 31. hxg5 {[%clk 0:01:02]}  hxg5 {[%clk 0:01:28]} 32. a5 {[%clk 0:00:51]}  Ke7 {[%clk 0:01:27]} 33. Na4 {[%clk 0:00:48]}  Kd6 {[%clk 0:01:14]} 34. b4 {[%clk 0:00:42]}  Kc6 {[%clk 0:01:10]} 35. Nc5 {[%clk 0:00:35]}  Bxc5 {[%clk 0:01:09]} 36. bxc5 {[%clk 0:00:32]}  Kxc5 {[%clk 0:01:09]} 37. Ba4 {[%clk 0:00:28]}  Kb4 {[%clk 0:01:01]} 38. Be8 {[%clk 0:00:27]}  f6 {[%clk 0:01:00]} 39. Bd7 {[%clk 0:00:25]}  Kxa5 {[%clk 0:00:57]} 40. Bxe6 {[%clk 0:00:25]}  Kb4 {[%clk 0:00:55]} 41. Kf2 {[%clk 0:00:26]}  a5 {[%clk 0:00:54]} 42. Bd5 {[%clk 0:00:25]}  b5 {[%clk 0:00:53]} 43. Ke1 {[%clk 0:00:24]}  Bc4 {[%clk 0:00:54]} 44. Bc6 {[%clk 0:00:17]}  Kb3 {[%clk 0:00:53]} 45. Kd2 {[%clk 0:00:17]}  Kb2 {[%clk 0:00:53]} 46. Bd5 {[%clk 0:00:16]}  a4 {[%clk 0:00:50]} 47. Bc6 {[%clk 0:00:10]}  a3 {[%clk 0:00:47]} 48. e5 {[%clk 0:00:11]}  fxe5 {[%clk 0:00:41]} 49. Bxb5 {[%clk 0:00:09]}  Bxb5 {[%clk 0:00:39]} 50. Ke1 {[%clk 0:00:04]}  a2 {[%clk 0:00:37]} 51. Kf2 {[%clk 0:00:04]}  a1=Q {[%clk 0:00:36]} 52. Kg2 {[%clk 0:00:05]}  Qf1+ {[%clk 0:00:35]} 53. Kh2 {[%clk 0:00:04]}  e4 {[%clk 0:00:35]} 54. fxe4 {[%clk 0:00:02]}  f3 {[%clk 0:00:35]} 0-1


[Site "https://www.chess.com"]

[Event "Titled Tuesday Blitz November 29 Late 2022"]
[White "Di Berardino, Diego Rafael"]
[Black "Chigaev, Maksim"]
[WhiteFideId "2105446"]
[BlackFideId "4108116"]
[WhiteElo "2442"]
[BlackElo "2541"]
[Result "0-1"]
[Round "07"]
[TimeControl "180+1"]
[Date "2022.11.30"]
[WhiteClock "0:00:03"]
[BlackClock "0:00:07"]

1. e4 {[%clk 0:02:59]}  c5 {[%clk 0:02:57]} 2. Nf3 {[%clk 0:02:59]}  e6 {[%clk 0:02:56]} 3. d4 {[%clk 0:02:57]}  cxd4 {[%clk 0:02:57]} 4. Nxd4 {[%clk 0:02:57]}  Nf6 {[%clk 0:02:58]} 5. Nc3 {[%clk 0:02:57]}  Nc6 {[%clk 0:02:58]} 6. Be2 {[%clk 0:02:50]}  Be7 {[%clk 0:02:59]} 7. O-O {[%clk 0:02:49]}  Qc7 {[%clk 0:02:57]} 8. Be3 {[%clk 0:02:45]}  a6 {[%clk 0:02:57]} 9. f4 {[%clk 0:02:42]}  d6 {[%clk 0:02:54]} 10. Kh1 {[%clk 0:02:43]}  O-O {[%clk 0:02:53]} 11. Qe1 {[%clk 0:02:43]}  Nxd4 {[%clk 0:02:53]} 12. Bxd4 {[%clk 0:02:44]}  b5 {[%clk 0:02:53]} 13. a3 {[%clk 0:02:44]}  Bb7 {[%clk 0:02:54]} 14. Qg3 {[%clk 0:02:44]}  Bc6 {[%clk 0:02:53]} 15. Rae1 {[%clk 0:02:44]}  Rac8 {[%clk 0:02:51]} 16. Bd3 {[%clk 0:02:43]}  e5 {[%clk 0:02:51]} 17. fxe5 {[%clk 0:02:32]}  Nh5 {[%clk 0:02:51]} 18. Qh3 {[%clk 0:02:16]}  dxe5 {[%clk 0:02:51]} 19. Be3 {[%clk 0:01:59]}  g6 {[%clk 0:02:43]} 20. Bh6 {[%clk 0:01:42]}  Ng7 {[%clk 0:02:26]} 21. Rf2 {[%clk 0:01:21]}  Bd7 {[%clk 0:01:49]} 22. Qf3 {[%clk 0:00:58]}  Be6 {[%clk 0:01:46]} 23. Ref1 {[%clk 0:00:52]}  f6 {[%clk 0:01:40]} 24. Qg3 {[%clk 0:00:30]}  Rf7 {[%clk 0:01:03]} 25. Qh4 {[%clk 0:00:26]}  Rcf8 {[%clk 0:00:31]} 26. Rf3 {[%clk 0:00:21]}  f5 {[%clk 0:00:26]} 27. Bg5 {[%clk 0:00:21]}  f4 {[%clk 0:00:27]} 28. Bxe7 {[%clk 0:00:15]}  Qxe7 {[%clk 0:00:27]} 29. Qxe7 {[%clk 0:00:15]}  Rxe7 {[%clk 0:00:27]} 30. g3 {[%clk 0:00:14]}  g5 {[%clk 0:00:25]} 31. gxf4 {[%clk 0:00:13]}  exf4 {[%clk 0:00:20]} 32. Rg1 {[%clk 0:00:13]}  h6 {[%clk 0:00:20]} 33. Nd5 {[%clk 0:00:11]}  Rd7 {[%clk 0:00:15]} 34. h4 {[%clk 0:00:07]}  Rxd5 {[%clk 0:00:14]} 35. exd5 {[%clk 0:00:06]}  Bxd5 {[%clk 0:00:14]} 36. Be2 {[%clk 0:00:05]}  Re8 {[%clk 0:00:15]} 37. Bd1 {[%clk 0:00:05]}  Re3 {[%clk 0:00:09]} 38. hxg5 {[%clk 0:00:04]}  hxg5 {[%clk 0:00:10]} 39. Rxg5 {[%clk 0:00:04]}  Bxf3+ {[%clk 0:00:09]} 40. Bxf3 {[%clk 0:00:03]}  Rxf3 {[%clk 0:00:10]} 41. Rg6 {[%clk 0:00:04]}  Rf2 {[%clk 0:00:09]} 42. Rxa6 {[%clk 0:00:03]}  Rxc2 {[%clk 0:00:07]} 43. b4 {[%clk 0:00:04]}  Nf5 {[%clk 0:00:07]} 44. Rf6 {[%clk 0:00:04]}  Ng3+ {[%clk 0:00:06]} 45. Kg1 {[%clk 0:00:04]}  Kg7 {[%clk 0:00:06]} 46. Rb6 {[%clk 0:00:03]}  f3 {[%clk 0:00:07]} 0-1


[Site "https://www.chess.com"]

[Event "Titled Tuesday Blitz November 29 Late 2022"]
[White "Donchenko, Alexander"]
[Black "Martinez Ramirez, Lennis"]
[WhiteFideId "24603295"]
[BlackFideId "3509079"]
[WhiteElo "2572"]
[BlackElo "2439"]
[Result "1-0"]
[Round "07"]
[TimeControl "180+1"]
[Date "2022.11.30"]
[WhiteClock "0:00:51"]
[BlackClock "0:00:10"]

1. c4 {[%clk 0:03:00]}  e5 {[%clk 0:02:59]} 2. g3 {[%clk 0:03:00]}  Nf6 {[%clk 0:02:58]} 3. Bg2 {[%clk 0:03:00]}  c6 {[%clk 0:02:56]} 4. Nf3 {[%clk 0:02:59]}  e4 {[%clk 0:02:56]} 5. Nd4 {[%clk 0:03:00]}  d5 {[%clk 0:02:57]} 6. cxd5 {[%clk 0:03:01]}  Qxd5 {[%clk 0:02:57]} 7. Nc2 {[%clk 0:03:01]}  Qe5 {[%clk 0:02:31]} 8. Nc3 {[%clk 0:03:01]}  Bf5 {[%clk 0:02:29]} 9. b4 {[%clk 0:02:58]}  Nbd7 {[%clk 0:02:04]} 10. Bb2 {[%clk 0:02:54]}  Bg6 {[%clk 0:01:57]} 11. O-O {[%clk 0:02:38]}  h5 {[%clk 0:01:46]} 12. h4 {[%clk 0:02:35]}  O-O-O {[%clk 0:01:39]} 13. b5 {[%clk 0:02:27]}  cxb5 {[%clk 0:01:32]} 14. Ne3 {[%clk 0:02:24]}  a6 {[%clk 0:01:28]} 15. Qc2 {[%clk 0:02:21]}  Qc7 {[%clk 0:01:27]} 16. Rfc1 {[%clk 0:02:19]}  Kb8 {[%clk 0:01:26]} 17. Qd1 {[%clk 0:02:13]}  Qe5 {[%clk 0:01:22]} 18. Rab1 {[%clk 0:02:09]}  Qe6 {[%clk 0:01:22]} 19. Ba1 {[%clk 0:01:54]}  Nb6 {[%clk 0:01:21]} 20. Nxb5 {[%clk 0:01:52]}  axb5 {[%clk 0:01:19]} 21. Rxb5 {[%clk 0:01:53]}  Nfd7 {[%clk 0:01:11]} 22. a4 {[%clk 0:01:47]}  Rc8 {[%clk 0:01:03]} 23. Rcb1 {[%clk 0:01:45]}  Rc5 {[%clk 0:00:59]} 24. a5 {[%clk 0:01:40]}  Rxb5 {[%clk 0:00:53]} 25. Rxb5 {[%clk 0:01:41]}  Na8 {[%clk 0:00:53]} 26. Qb1 {[%clk 0:01:40]}  Qc6 {[%clk 0:00:48]} 27. Bh3 {[%clk 0:01:37]}  Nc5 {[%clk 0:00:43]} 28. Be5+ {[%clk 0:01:33]}  Bd6 {[%clk 0:00:42]} 29. Bxg7 {[%clk 0:01:25]}  Rg8 {[%clk 0:00:40]} 30. Bd4 {[%clk 0:01:23]}  Nc7 {[%clk 0:00:39]} 31. Rb6 {[%clk 0:01:22]}  Qa4 {[%clk 0:00:27]} 32. Rxd6 {[%clk 0:01:10]}  Qxa5 {[%clk 0:00:27]} 33. Rb6 {[%clk 0:01:06]}  N7a6 {[%clk 0:00:19]} 34. Nc4 {[%clk 0:01:01]}  Qa4 {[%clk 0:00:19]} 35. Bxc5 {[%clk 0:00:57]}  Nxc5 {[%clk 0:00:19]} 36. Nd6 {[%clk 0:00:56]}  Qa7 {[%clk 0:00:10]} 37. Qb4 {[%clk 0:00:51]} 1-0


[Site "https://www.chess.com"]

[Event "Titled Tuesday Blitz November 29 Late 2022"]
[White "Dzierzak, Radoslaw"]
[Black "Sanchez, Robert"]
[WhiteFideId "1161407"]
[BlackFideId "2034360"]
[WhiteElo "2111"]
[BlackElo "2317"]
[Result "1/2-1/2"]
[Round "07"]
[TimeControl "180+1"]
[Date "2022.11.30"]
[WhiteClock "0:00:05"]
[BlackClock "0:00:10"]

1. e4 {[%clk 0:02:45]}  d5 {[%clk 0:02:51]} 2. exd5 {[%clk 0:02:44]}  Qxd5 {[%clk 0:02:51]} 3. Nc3 {[%clk 0:02:44]}  Qe6+ {[%clk 0:02:51]} 4. Be2 {[%clk 0:02:42]}  Qg6 {[%clk 0:02:50]} 5. Bf3 {[%clk 0:02:38]}  Nc6 {[%clk 0:02:50]} 6. Nb5 {[%clk 0:01:53]}  Qe6+ {[%clk 0:02:44]} 7. Ne2 {[%clk 0:01:48]}  Qd7 {[%clk 0:02:43]} 8. d4 {[%clk 0:01:41]}  a6 {[%clk 0:02:43]} 9. Nbc3 {[%clk 0:01:40]}  Nf6 {[%clk 0:02:44]} 10. Bg5 {[%clk 0:01:34]}  h6 {[%clk 0:02:42]} 11. Bxf6 {[%clk 0:01:34]}  exf6 {[%clk 0:02:42]} 12. O-O {[%clk 0:01:24]}  Be7 {[%clk 0:02:40]} 13. Nd5 {[%clk 0:01:12]}  Bd6 {[%clk 0:02:31]} 14. c4 {[%clk 0:01:08]}  O-O {[%clk 0:02:28]} 15. c5 {[%clk 0:01:07]}  Be7 {[%clk 0:02:28]} 16. Nxe7+ {[%clk 0:01:07]}  Nxe7 {[%clk 0:02:28]} 17. d5 {[%clk 0:00:59]}  Ng6 {[%clk 0:02:23]} 18. Nc3 {[%clk 0:00:48]}  Ne5 {[%clk 0:02:19]} 19. Be4 {[%clk 0:00:40]}  Re8 {[%clk 0:02:13]} 20. f4 {[%clk 0:00:37]}  Nc4 {[%clk 0:01:57]} 21. Qd4 {[%clk 0:00:30]}  b5 {[%clk 0:01:17]} 22. b3 {[%clk 0:00:26]}  Na3 {[%clk 0:01:12]} 23. Rac1 {[%clk 0:00:23]}  f5 {[%clk 0:01:05]} 24. Bf3 {[%clk 0:00:24]}  a5 {[%clk 0:00:58]} 25. Rfe1 {[%clk 0:00:17]}  Bb7 {[%clk 0:00:52]} 26. c6 {[%clk 0:00:16]}  Bxc6 {[%clk 0:00:52]} 27. Qc5 {[%clk 0:00:12]}  Bb7 {[%clk 0:00:42]} 28. Qxa3 {[%clk 0:00:09]}  b4 {[%clk 0:00:42]} 29. Qa4 {[%clk 0:00:10]}  Qd6 {[%clk 0:00:41]} 30. Nb5 {[%clk 0:00:07]}  Qxf4 {[%clk 0:00:40]} 31. d6 {[%clk 0:00:03]}  Bxf3 {[%clk 0:00:36]} 32. Nxc7 {[%clk 0:00:03]}  Qg5 {[%clk 0:00:27]} 33. Rxe8+ {[%clk 0:00:02]}  Rxe8 {[%clk 0:00:26]} 34. Qxe8+ {[%clk 0:00:03]}  Kh7 {[%clk 0:00:26]} 35. Rc2 {[%clk 0:00:03]}  Be4 {[%clk 0:00:23]} 36. Rf2 {[%clk 0:00:02]}  Qc1+ {[%clk 0:00:20]} 37. Rf1 {[%clk 0:00:02]}  Qe3+ {[%clk 0:00:20]} 38. Kh1 {[%clk 0:00:02]}  Qe2 {[%clk 0:00:13]} 39. Rg1 {[%clk 0:00:03]}  Bxg2+ {[%clk 0:00:11]} 40. Rxg2 {[%clk 0:00:03]}  Qf1+ {[%clk 0:00:10]} 41. Rg1 {[%clk 0:00:04]}  Qf3+ {[%clk 0:00:11]} 42. Rg2 {[%clk 0:00:04]}  Qf1+ {[%clk 0:00:09]} 43. Rg1 {[%clk 0:00:05]}  Qf3+ {[%clk 0:00:09]} 44. Rg2 {[%clk 0:00:05]}  Qf1+ {[%clk 0:00:10]} 1/2-1/2


[Site "https://www.chess.com"]

[Event "Titled Tuesday Blitz November 29 Late 2022"]
[White "Estrada Nieto, Julian"]
[Black "Gasparyan, David"]
[WhiteFideId "5101018"]
[BlackFideId "13311980"]
[WhiteElo "2221"]
[BlackElo "2365"]
[Result "0-1"]
[Round "07"]
[TimeControl "180+1"]
[Date "2022.11.30"]
[WhiteClock "0:00:01"]
[BlackClock "0:00:06"]

1. e4 {[%clk 0:03:00]}  c5 {[%clk 0:02:59]} 2. Nf3 {[%clk 0:03:01]}  Nf6 {[%clk 0:02:55]} 3. Nc3 {[%clk 0:02:56]}  d5 {[%clk 0:02:52]} 4. Bb5+ {[%clk 0:02:56]}  Nc6 {[%clk 0:02:51]} 5. e5 {[%clk 0:02:53]}  Ne4 {[%clk 0:02:51]} 6. O-O {[%clk 0:02:45]}  Bg4 {[%clk 0:02:48]} 7. h3 {[%clk 0:02:45]}  Bh5 {[%clk 0:02:47]} 8. d3 {[%clk 0:02:30]}  Nxc3 {[%clk 0:02:46]} 9. bxc3 {[%clk 0:02:31]}  e6 {[%clk 0:02:44]} 10. Rb1 {[%clk 0:02:24]}  Be7 {[%clk 0:02:43]} 11. Ba4 {[%clk 0:02:15]}  Rb8 {[%clk 0:02:39]} 12. Rxb7 {[%clk 0:02:14]}  Rxb7 {[%clk 0:02:36]} 13. Bxc6+ {[%clk 0:02:14]}  Rd7 {[%clk 0:02:37]} 14. Be3 {[%clk 0:01:54]}  O-O {[%clk 0:02:35]} 15. Bxd7 {[%clk 0:01:54]}  Qxd7 {[%clk 0:02:36]} 16. Qb1 {[%clk 0:01:51]}  Qc7 {[%clk 0:02:33]} 17. Bf4 {[%clk 0:01:47]}  Rb8 {[%clk 0:02:27]} 18. Qc1 {[%clk 0:01:47]}  Qa5 {[%clk 0:02:22]} 19. g4 {[%clk 0:01:34]}  Bg6 {[%clk 0:02:22]} 20. h4 {[%clk 0:01:25]}  h5 {[%clk 0:02:17]} 21. Bg5 {[%clk 0:01:22]}  Bf8 {[%clk 0:02:15]} 22. gxh5 {[%clk 0:01:14]}  Bxh5 {[%clk 0:02:16]} 23. Kg2 {[%clk 0:00:59]}  Qxa2 {[%clk 0:02:04]} 24. Qa1 {[%clk 0:00:51]}  Qxc2 {[%clk 0:02:02]} 25. Qxa7 {[%clk 0:00:48]}  Qxd3 {[%clk 0:01:36]} 26. Nh2 {[%clk 0:00:48]}  Qe4+ {[%clk 0:01:34]} 27. Kg1 {[%clk 0:00:42]}  Rb2 {[%clk 0:01:19]} 28. Qa8 {[%clk 0:00:36]}  Qxe5 {[%clk 0:00:50]} 29. Be7 {[%clk 0:00:26]}  Rb8 {[%clk 0:00:48]} 30. Qa7 {[%clk 0:00:22]}  Bxe7 {[%clk 0:00:42]} 31. Qxe7 {[%clk 0:00:22]}  Qxc3 {[%clk 0:00:40]} 32. Qg5 {[%clk 0:00:18]}  Be2 {[%clk 0:00:34]} 33. Rc1 {[%clk 0:00:12]}  Qd4 {[%clk 0:00:34]} 34. h5 {[%clk 0:00:11]}  Bd3 {[%clk 0:00:30]} 35. h6 {[%clk 0:00:10]}  Bg6 {[%clk 0:00:30]} 36. hxg7 {[%clk 0:00:10]}  Rb2 {[%clk 0:00:28]} 37. Ng4 {[%clk 0:00:09]}  Kxg7 {[%clk 0:00:05]} 38. Rf1 {[%clk 0:00:07]}  Rd2 {[%clk 0:00:03]} 39. Ne5 {[%clk 0:00:07]}  Qe4 {[%clk 0:00:03]} 40. Nxg6 {[%clk 0:00:03]}  Qxg6 {[%clk 0:00:03]} 41. Qxg6+ {[%clk 0:00:03]}  Kxg6 {[%clk 0:00:04]} 42. Rc1 {[%clk 0:00:03]}  c4 {[%clk 0:00:04]} 43. Kg2 {[%clk 0:00:03]}  Ra2 {[%clk 0:00:05]} 44. Kf3 {[%clk 0:00:04]}  Kf5 {[%clk 0:00:06]} 45. Rb1 {[%clk 0:00:03]}  e5 {[%clk 0:00:06]} 46. Rb7 {[%clk 0:00:02]}  f6 {[%clk 0:00:06]} 47. Rb6 {[%clk 0:00:02]}  d4 {[%clk 0:00:06]} 48. Rc6 {[%clk 0:00:01]}  c3 {[%clk 0:00:06]} 0-1


[Site "https://www.chess.com"]

[Event "Titled Tuesday Blitz November 29 Late 2022"]
[White "Fareh, Youness"]
[Black "Kovacevic, Radmila"]
[WhiteFideId "9000526"]
[BlackFideId "933171"]
[WhiteElo "1842"]
[BlackElo "2208"]
[Result "0-1"]
[Round "07"]
[TimeControl "180+1"]
[Date "2022.11.30"]
[WhiteClock "0:00:05"]
[BlackClock "0:00:26"]

1. Nf3 {[%clk 0:02:58]}  e5 {[%clk 0:03:00]} 2. Nxe5 {[%clk 0:02:57]}  Nc6 {[%clk 0:02:50]} 3. Nxc6 {[%clk 0:02:54]}  dxc6 {[%clk 0:02:51]} 4. g3 {[%clk 0:02:53]}  Bd6 {[%clk 0:02:52]} 5. Bg2 {[%clk 0:02:53]}  h5 {[%clk 0:02:53]} 6. h4 {[%clk 0:02:52]}  g5 {[%clk 0:02:49]} 7. e3 {[%clk 0:02:50]}  gxh4 {[%clk 0:02:44]} 8. Rxh4 {[%clk 0:02:50]}  Bg4 {[%clk 0:02:40]} 9. Bf3 {[%clk 0:02:48]}  Be7 {[%clk 0:02:36]} 10. Rh1 {[%clk 0:02:41]}  Nf6 {[%clk 0:02:32]} 11. b3 {[%clk 0:02:28]}  Qd7 {[%clk 0:02:22]} 12. Bb2 {[%clk 0:02:25]}  O-O-O {[%clk 0:02:20]} 13. Nc3 {[%clk 0:02:11]}  Qf5 {[%clk 0:02:18]} 14. Bxg4 {[%clk 0:02:08]}  hxg4 {[%clk 0:02:12]} 15. Rf1 {[%clk 0:01:52]}  Rh2 {[%clk 0:02:07]} 16. Qe2 {[%clk 0:01:51]}  Qxc2 {[%clk 0:02:06]} 17. d4 {[%clk 0:01:43]}  Qf5 {[%clk 0:01:53]} 18. O-O-O {[%clk 0:01:40]}  Bb4 {[%clk 0:01:41]} 19. a3 {[%clk 0:01:31]}  Bxc3 {[%clk 0:01:39]} 20. Bxc3 {[%clk 0:01:31]}  Ne4 {[%clk 0:01:37]} 21. Be1 {[%clk 0:01:28]}  c5 {[%clk 0:01:28]} 22. d5 {[%clk 0:01:15]}  a6 {[%clk 0:01:25]} 23. Rd3 {[%clk 0:00:47]}  Rxd5 {[%clk 0:01:12]} 24. Rxd5 {[%clk 0:00:46]}  Qxd5 {[%clk 0:01:12]} 25. Qxg4+ {[%clk 0:00:46]}  Kb8 {[%clk 0:01:09]} 26. Qd1 {[%clk 0:00:39]}  Qf5 {[%clk 0:01:04]} 27. f4 {[%clk 0:00:29]}  Nd6 {[%clk 0:00:56]} 28. Rf2 {[%clk 0:00:27]}  Rh1 {[%clk 0:00:43]} 29. Re2 {[%clk 0:00:22]}  Qe6 {[%clk 0:00:36]} 30. Qd3 {[%clk 0:00:18]}  c4 {[%clk 0:00:30]} 31. bxc4 {[%clk 0:00:11]}  Nxc4 {[%clk 0:00:30]} 32. Qd8+ {[%clk 0:00:07]}  Ka7 {[%clk 0:00:30]} 33. Qd4+ {[%clk 0:00:08]}  Nb6 {[%clk 0:00:30]} 34. Kb2 {[%clk 0:00:05]}  Qc6 {[%clk 0:00:26]} 35. Bc3 {[%clk 0:00:05]}  Qb5+ {[%clk 0:00:26]} 36. Ka2 {[%clk 0:00:05]}  Qxe2+ {[%clk 0:00:26]} 0-1


[Site "https://www.chess.com"]

[Event "Titled Tuesday Blitz November 29 Late 2022"]
[White "Fedoseev, Vladimir"]
[Black "Melkumyan, Hrant"]
[WhiteFideId "24130737"]
[BlackFideId "13302485"]
[WhiteElo "2726"]
[BlackElo "2604"]
[Result "1-0"]
[Round "07"]
[TimeControl "180+1"]
[Date "2022.11.30"]
[WhiteClock "0:00:01"]
[BlackClock "0:00:11"]

1. d4 {[%clk 0:02:46]}  Nf6 {[%clk 0:02:58]} 2. c4 {[%clk 0:02:46]}  g6 {[%clk 0:02:58]} 3. Nc3 {[%clk 0:02:44]}  Bg7 {[%clk 0:02:59]} 4. e4 {[%clk 0:02:44]}  d6 {[%clk 0:02:59]} 5. Be2 {[%clk 0:02:44]}  e5 {[%clk 0:02:59]} 6. d5 {[%clk 0:02:39]}  Na6 {[%clk 0:02:59]} 7. Be3 {[%clk 0:02:37]}  Nc5 {[%clk 0:02:59]} 8. f3 {[%clk 0:02:33]}  a5 {[%clk 0:02:59]} 9. g4 {[%clk 0:02:30]}  h5 {[%clk 0:02:55]} 10. g5 {[%clk 0:02:27]}  Nh7 {[%clk 0:02:54]} 11. h4 {[%clk 0:02:28]}  f6 {[%clk 0:02:54]} 12. Qd2 {[%clk 0:02:16]}  fxg5 {[%clk 0:02:54]} 13. hxg5 {[%clk 0:02:15]}  O-O {[%clk 0:02:54]} 14. Nh3 {[%clk 0:02:14]}  Bxh3 {[%clk 0:02:50]} 15. Rxh3 {[%clk 0:02:15]}  Rf4 {[%clk 0:02:50]} 16. Rg3 {[%clk 0:02:09]}  Qe7 {[%clk 0:02:41]} 17. O-O-O {[%clk 0:02:07]}  Raf8 {[%clk 0:02:41]} 18. Rdg1 {[%clk 0:02:04]}  Rh4 {[%clk 0:02:30]} 19. R3g2 {[%clk 0:01:48]}  Rh3 {[%clk 0:02:23]} 20. Qd1 {[%clk 0:01:48]}  Rf4 {[%clk 0:02:19]} 21. Kb1 {[%clk 0:01:44]}  Nf8 {[%clk 0:02:15]} 22. Nb5 {[%clk 0:01:28]}  b6 {[%clk 0:02:05]} 23. a3 {[%clk 0:01:08]}  Qd8 {[%clk 0:01:23]} 24. Ka2 {[%clk 0:00:55]}  Rf7 {[%clk 0:01:15]} 25. Nc3 {[%clk 0:00:53]}  Nfd7 {[%clk 0:01:11]} 26. b4 {[%clk 0:00:51]}  Nb7 {[%clk 0:01:05]} 27. Kb3 {[%clk 0:00:50]}  Bf8 {[%clk 0:01:04]} 28. Rh1 {[%clk 0:00:43]}  Rxh1 {[%clk 0:01:01]} 29. Qxh1 {[%clk 0:00:44]}  Be7 {[%clk 0:01:02]} 30. Qh3 {[%clk 0:00:44]}  Nf8 {[%clk 0:01:00]} 31. Nb5 {[%clk 0:00:42]}  Qb8 {[%clk 0:00:46]} 32. Rg1 {[%clk 0:00:39]}  Bd8 {[%clk 0:00:46]} 33. Qg3 {[%clk 0:00:32]}  Qa8 {[%clk 0:00:46]} 34. Nc3 {[%clk 0:00:30]}  Qc8 {[%clk 0:00:42]} 35. f4 {[%clk 0:00:29]}  exf4 {[%clk 0:00:40]} 36. Bxf4 {[%clk 0:00:29]}  Qd7 {[%clk 0:00:35]} 37. Bd3 {[%clk 0:00:22]}  Be7 {[%clk 0:00:34]} 38. Be3 {[%clk 0:00:16]}  Qe8 {[%clk 0:00:24]} 39. e5 {[%clk 0:00:10]}  dxe5 {[%clk 0:00:21]} 40. Qxe5 {[%clk 0:00:11]}  axb4 {[%clk 0:00:22]} 41. axb4 {[%clk 0:00:01]}  Qd8 {[%clk 0:00:21]} 42. Bd4 {[%clk 0:00:02]}  Rh7 {[%clk 0:00:19]} 43. Bxg6 {[%clk 0:00:02]}  Bd6 {[%clk 0:00:11]} 44. Bxh7+ {[%clk 0:00:01]} 1-0


[Site "https://www.chess.com"]

[Event "Titled Tuesday Blitz November 29 Late 2022"]
[White "Forgacs, Attila Jr."]
[Black "Kalogeris, Ioannis"]
[WhiteFideId "773654"]
[BlackFideId "4239563"]
[WhiteElo "2168"]
[BlackElo "2312"]
[Result "0-1"]
[Round "07"]
[TimeControl "180+1"]
[Date "2022.11.30"]
[WhiteClock "0:00:05"]
[BlackClock "0:00:57"]

1. e4 {[%clk 0:03:00]}  e5 {[%clk 0:02:59]} 2. Nf3 {[%clk 0:02:59]}  Nc6 {[%clk 0:03:00]} 3. Bb5 {[%clk 0:02:59]}  a6 {[%clk 0:03:00]} 4. Ba4 {[%clk 0:03:00]}  b5 {[%clk 0:03:00]} 5. Bb3 {[%clk 0:03:00]}  Nf6 {[%clk 0:03:01]} 6. O-O {[%clk 0:02:55]}  Bc5 {[%clk 0:03:00]} 7. c3 {[%clk 0:02:55]}  d6 {[%clk 0:02:59]} 8. d4 {[%clk 0:02:52]}  Bb6 {[%clk 0:02:59]} 9. d5 {[%clk 0:02:48]}  Ne7 {[%clk 0:02:57]} 10. Nbd2 {[%clk 0:02:47]}  O-O {[%clk 0:02:57]} 11. a4 {[%clk 0:02:47]}  Bd7 {[%clk 0:02:50]} 12. h3 {[%clk 0:02:42]}  Ng6 {[%clk 0:02:49]} 13. Re1 {[%clk 0:02:41]}  Nh5 {[%clk 0:02:31]} 14. Nf1 {[%clk 0:02:39]}  Nhf4 {[%clk 0:02:28]} 15. Be3 {[%clk 0:02:36]}  Qc8 {[%clk 0:02:23]} 16. Bxb6 {[%clk 0:02:31]}  cxb6 {[%clk 0:02:23]} 17. Ne3 {[%clk 0:02:11]}  bxa4 {[%clk 0:02:10]} 18. Bxa4 {[%clk 0:02:11]}  b5 {[%clk 0:02:10]} 19. Bc2 {[%clk 0:02:08]}  a5 {[%clk 0:02:10]} 20. c4 {[%clk 0:02:01]}  b4 {[%clk 0:02:09]} 21. Ba4 {[%clk 0:02:00]}  Bxa4 {[%clk 0:02:04]} 22. Rxa4 {[%clk 0:02:01]}  Qc5 {[%clk 0:01:59]} 23. b3 {[%clk 0:01:59]}  Ne7 {[%clk 0:01:56]} 24. Nh4 {[%clk 0:01:57]}  g6 {[%clk 0:01:49]} 25. Kh2 {[%clk 0:01:51]}  Nc8 {[%clk 0:01:48]} 26. g3 {[%clk 0:01:48]}  Nh5 {[%clk 0:01:37]} 27. Qg4 {[%clk 0:01:47]}  Ng7 {[%clk 0:01:28]} 28. f4 {[%clk 0:01:24]}  Nb6 {[%clk 0:01:28]} 29. f5 {[%clk 0:01:12]}  Nxa4 {[%clk 0:01:23]} 30. bxa4 {[%clk 0:01:13]}  Qd4 {[%clk 0:01:18]} 31. f6 {[%clk 0:01:10]}  Ne8 {[%clk 0:01:17]} 32. Nhf5 {[%clk 0:01:04]}  Nxf6 {[%clk 0:01:10]} 33. Nxd4 {[%clk 0:00:24]}  Nxg4+ {[%clk 0:01:10]} 34. Nxg4 {[%clk 0:00:25]}  exd4 {[%clk 0:01:10]} 35. e5 {[%clk 0:00:24]}  dxe5 {[%clk 0:01:03]} 36. c5 {[%clk 0:00:20]}  f6 {[%clk 0:01:02]} 37. d6 {[%clk 0:00:19]}  Rfc8 {[%clk 0:01:01]} 38. Nxf6+ {[%clk 0:00:16]}  Kf7 {[%clk 0:01:01]} 39. Ne4 {[%clk 0:00:13]}  Ke6 {[%clk 0:01:01]} 40. Rf1 {[%clk 0:00:12]}  Kd5 {[%clk 0:01:01]} 41. d7 {[%clk 0:00:11]}  Rd8 {[%clk 0:00:58]} 42. Nf6+ {[%clk 0:00:10]}  Kxc5 {[%clk 0:00:57]} 43. Rc1+ {[%clk 0:00:10]}  Kd6 {[%clk 0:00:57]} 44. Ne4+ {[%clk 0:00:07]}  Kd5 {[%clk 0:00:57]} 45. Nf6+ {[%clk 0:00:07]}  Kd6 {[%clk 0:00:57]} 46. Ne4+ {[%clk 0:00:08]}  Ke7 {[%clk 0:00:58]} 47. Rc6 {[%clk 0:00:06]}  Rxd7 {[%clk 0:00:58]} 48. Nc5 {[%clk 0:00:06]}  Rd5 {[%clk 0:00:58]} 49. Re6+ {[%clk 0:00:06]}  Kf7 {[%clk 0:00:58]} 50. Rc6 {[%clk 0:00:06]}  d3 {[%clk 0:00:58]} 51. Rc7+ {[%clk 0:00:06]}  Kg8 {[%clk 0:00:58]} 52. Ne6 {[%clk 0:00:06]}  d2 {[%clk 0:00:58]} 53. Rg7+ {[%clk 0:00:05]}  Kh8 {[%clk 0:00:58]} 54. Rf7 {[%clk 0:00:05]}  d1=Q {[%clk 0:00:58]} 55. Rf8+ {[%clk 0:00:05]}  Rxf8 {[%clk 0:00:57]} 0-1


[Site "https://www.chess.com"]